fUST/lending_fUST_20250422
["ID","MTS","AMOUNT","RATE_DAILY","PERIOD"]
[358609892,1745309461898,-500.0,0.00022739,2]
[358609893,1745309461907,-500.0,0.00022739,2]
[358609894,1745309461917,-500.0,0.00022739,2]
[358609895,1745309461926,-500.0,0.00022739,2]
[358609896,1745309461936,-151.0,0.00022739,7]
[358609897,1745309461946,-500.0,0.00022739,2]
[358609898,1745309461956,-500.0,0.00022739,2]
[358609899,1745309461972,-151.0,0.00022739,7]
[358609900,1745309461982,-500.0,0.00022739,2]
[358609901,1745309461991,-500.0,0.00022739,2]
[358609902,1745309462000,-500.0,0.00022739,2]
[358609903,1745309462011,-579.5795885,0.00022739,2]
[358609904,1745309462020,-500.0,0.00022739,2]
[358609905,1745309462030,-500.0,0.00022739,2]
[358609906,1745309462042,-786.265561,0.00022739,7]
[358609907,1745309462052,-786.265561,0.00022739,7]
[358609908,1745309462061,-500.0,0.00022739,2]
[358609909,1745309462071,-500.0,0.00022739,2]
[358609910,1745309462080,-500.0,0.00022739,2]
[358609911,1745309462091,-500.0,0.00022739,2]
[358609912,1745309462103,-500.0,0.00022739,2]
[358609913,1745309462114,-500.0,0.00022739,2]
[358609914,1745309462123,-500.0,0.00022739,2]
[358609915,1745309462133,-500.0,0.00022739,2]
[358609916,1745309462142,-500.0,0.00022739,2]
[358609917,1745309462152,-978.33,0.00022739,2]
[358609918,1745309462161,-151.0,0.00022739,7]
[358609919,1745309462171,-508.32,0.00022739,2]
[358609920,1745309462181,-500.0,0.00022739,2]
[358609921,1745309462191,-500.0,0.00022739,2]
[358609922,1745309462201,-506.51856714,0.00022739,2]
[358609923,1745309462211,-500.0,0.00022739,2]
[358609924,1745309462220,-500.0,0.00022739,2]
[358609925,1745309462229,-1000.0,0.00022739,2]
[358609926,1745309462239,-500.0,0.00022739,2]
[358609927,1745309462249,-500.0,0.00022739,2]
[358609928,1745309462258,-500.0,0.00022739,2]
[358609929,1745309462268,-500.0,0.00022739,2]
[358609930,1745309462290,-513.33903632,0.00022739,2]
[358609931,1745309462303,-505.45673263,0.00022739,2]
[358609932,1745309462313,-278.103884,0.00022739,7]
[358609933,1745309462322,-503.14257942,0.00022739,2]
[358609934,1745309462332,-278.103884,0.00022739,7]
[358609935,1745309462342,-500.0,0.00022739,2]
[358609936,1745309462352,-500.0,0.00022739,2]
[358609937,1745309462363,-500.0,0.00022739,2]
[358609938,1745309462373,-500.0,0.00022739,2]
[358609939,1745309462383,-500.0,0.00022739,2]
[358609940,1745309462393,-500.0,0.00022739,2]
[358609941,1745309462403,-500.0,0.00022739,2]
[358609942,1745309462413,-500.0,0.00022739,2]
[358609943,1745309462431,-792.85,0.00022739,2]
[358609944,1745309462441,-500.0,0.00022739,2]
[358609945,1745309462453,-500.0,0.00022739,2]
[358609946,1745309462463,-897.73,0.00022739,2]
[358609947,1745309462473,-369.89588298,0.00022739,2]
[358609948,1745309462483,-500.0,0.00022739,2]
[358609949,1745309462493,-239.80631411,0.00022739,2]
[358609950,1745309462503,-516.5,0.00022739,2]
[358609951,1745309462513,-500.0,0.00022739,2]
[358609952,1745309462522,-500.0,0.00022739,2]
[358609953,1745309462533,-500.0,0.00022739,2]
[358609954,1745309462544,-500.0,0.00022739,2]
[358609955,1745309462555,-612.3633704,0.00022739,2]
[358609956,1745309462564,-500.0,0.00022739,2]
[358609957,1745309462575,-510.86,0.00022739,2]
[358609958,1745309462585,-500.0,0.00022739,2]
[358609959,1745309462596,-649.4590962,0.00022739,2]
[358609960,1745309462607,-505.79328811,0.00022739,2]
[358609961,1745309462618,-876.62,0.00022739,2]
[358609962,1745309462628,-500.0,0.00022739,2]
[358609963,1745309462639,-242.52374537,0.00022739,2]
[358609964,1745309462649,-312.368064,0.00022739,7]
[358609965,1745309462659,-312.368064,0.00022739,7]
[358609966,1745309462670,-500.0,0.00022739,2]
[358609967,1745309462681,-312.368064,0.00022739,7]
[358609968,1745309462692,-312.368064,0.00022739,7]
[358609969,1745309462702,-500.0,0.00022739,2]
[358609970,1745309462712,-617.43397397,0.00022739,2]
[358609971,1745309462722,-500.0,0.00022739,2]
[358609972,1745309462732,-500.0,0.00022739,2]
[358609973,1745309462742,-500.0,0.00022739,2]
[358609974,1745309462752,-823.1,0.00022739,2]
[358609975,1745309462762,-211.999404,0.00022739,7]
[358609976,1745309462772,-506.20486203,0.00022739,2]
[358609977,1745309462958,-500.0,0.00022739,2]
[358609978,1745309462973,-500.0,0.00022739,2]
[358609979,1745309462983,-500.0,0.00022739,2]
[358609980,1745309462993,-500.0,0.00022739,2]
[358609981,1745309463003,-861.377032,0.00022739,7]
[358609982,1745309463014,-500.0,0.00022739,2]
[358609983,1745309463024,-500.0,0.00022739,2]
[358609984,1745309463034,-861.377032,0.00022739,7]
[358609985,1745309463045,-496.65672622,0.00022739,2]
[358609986,1745309463056,-500.0,0.00022739,2]
[358609987,1745309463066,-861.377032,0.00022739,7]
[358609988,1745309463078,-861.377032,0.00022739,7]
[358609989,1745309463088,-500.0,0.00022739,2]
[358609990,1745309463098,-529.154868,0.00022739,7]
[358609991,1745309463108,-529.154868,0.00022739,7]
[358609992,1745309463119,-515.88,0.00022739,2]
[358609993,1745309463129,-529.154868,0.00022739,7]
[358609994,1745309463139,-529.154868,0.00022739,7]
[358609995,1745309463149,-500.0,0.00022739,2]
[358609996,1745309463158,-500.0,0.00022739,2]
[358609997,1745309463169,-1374.05,0.00022739,2]
[358609998,1745309463179,-500.0,0.00022739,2]
[358609999,1745309463189,-500.0,0.00022739,2]
[358610000,1745309463198,-1084.11,0.00022739,2]
[358610001,1745309463208,-500.0,0.00022739,2]
[358610002,1745309463218,-500.0,0.00022739,2]
[358610003,1745309463229,-500.61,0.00022739,2]
[358610004,1745309463239,-626.69,0.00022739,2]
[358610005,1745309463249,-500.0,0.00022739,2]
[358610006,1745309463259,-758.02,0.00022739,2]
[358610007,1745309463270,-500.0,0.00022739,2]
[358610008,1745309463279,-825.53,0.00022739,2]
[358610009,1745309463290,-500.0,0.00022739,2]
[358610010,1745309463300,-500.0,0.00022739,2]
[358610011,1745309463310,-151.0,0.00022739,7]
[358610012,1745309463319,-500.0,0.00022739,2]
[358610013,1745309463330,-500.0,0.00022739,2]
[358610014,1745309463340,-500.0,0.00022739,2]
[358610015,1745309463350,-500.0,0.00022739,2]
[358610016,1745309463361,-151.0,0.00022739,7]
[358610017,1745309463371,-500.0,0.00022739,2]
[358610018,1745309463381,-382.213737,0.00022739,7]
[358610019,1745309463391,-500.0,0.00022739,2]
[358610020,1745309463401,-500.0,0.00022739,2]
[358610021,1745309463411,-382.213737,0.00022739,7]
[358610022,1745309463421,-500.0,0.00022739,2]
[358610023,1745309463431,-643.48522295,0.00022739,2]
[358610024,1745309463441,-508.662506,0.00022739,7]
[358610025,1745309463452,-500.0,0.00022739,2]
[358610026,1745309463462,-508.662506,0.00022739,7]
[358610027,1745309463474,-500.0,0.00022739,2]
[358610028,1745309463484,-500.0,0.00022739,2]
[358610029,1745309463494,-1000.0,0.00022739,2]
[358610030,1745309463504,-893.19,0.00022739,2]
[358610031,1745309463515,-500.0,0.00022739,2]
[358610032,1745309463525,-500.0,0.00022739,2]
[358610033,1745309463535,-315.40091124,0.00022739,2]
[358610034,1745309463545,-500.0,0.00022739,2]
[358610035,1745309463555,-500.0,0.00022739,2]
[358610036,1745309463564,-274.41566099,0.00022739,2]
[358610037,1745309463574,-500.0,0.00022739,2]
[358610038,1745309463583,-500.0,0.00022739,2]
[358610039,1745309463593,-500.0,0.00022739,2]
[358610040,1745309463603,-500.0,0.00022739,2]
[358610041,1745309463614,-500.0,0.00022739,2]
[358610042,1745309463625,-500.0,0.00022739,2]
[358610043,1745309463636,-1740.71,0.00022739,2]
[358610044,1745309463647,-835.59,0.00022739,2]
[358610045,1745309463657,-500.0,0.00022739,2]
[358610046,1745309463667,-500.0,0.00022739,2]
[358610047,1745309463677,-516.59034905,0.00022739,2]
[358610048,1745309463688,-513.44134594,0.00022739,2]
[358610049,1745309463699,-729.1,0.00022739,2]
[358610050,1745309463710,-500.0,0.00022739,2]
[358610051,1745309463720,-500.0,0.00022739,2]
[358610052,1745309463732,-775.14,0.00022739,2]
[358610053,1745309463744,-500.0,0.00022739,2]
[358610054,1745309463754,-154.781681,0.00022739,7]
[358610055,1745309463763,-154.781681,0.00022739,7]
[358610056,1745309463774,-500.0,0.00022739,2]
[358610057,1745309463784,-154.781681,0.00022739,7]
[358610058,1745309463794,-154.781681,0.00022739,7]
[358610059,1745309463804,-500.0,0.00022739,2]
[358610060,1745309463814,-500.0,0.00022739,2]
[358610061,1745309463824,-510.84435488,0.00022739,2]
[358610062,1745309463834,-511.22,0.00022739,2]
[358610063,1745309463844,-788.54,0.00022739,2]
[358610064,1745309463855,-500.0,0.00022739,2]
[358610065,1745309463866,-500.0,0.00022739,2]
[358610066,1745309463876,-630.95893608,0.00022739,2]
[358610067,1745309463886,-936.2,0.00022739,2]
[358610068,1745309463897,-500.0,0.00022739,2]
[358610069,1745309463908,-1720.830185,0.00022739,7]
[358610070,1745309463918,-1720.830185,0.00022739,7]
[358610071,1745309463929,-1720.830185,0.00022739,7]
[358610072,1745309463939,-1720.830185,0.00022739,7]
[358610073,1745309463950,-500.0,0.00022739,2]
[358610074,1745309463961,-202.039798,0.00022739,7]
[358610075,1745309463975,-500.0,0.00022739,2]
[358610076,1745309463986,-202.039798,0.00022739,7]
[358610077,1745309463997,-9507.54,0.00022739,2]
[358610078,1745309464009,-536.2,0.00022739,2]
[358610079,1745309464019,-500.0,0.00022739,2]
[358610080,1745309464029,-202.039798,0.00022739,7]
[358610081,1745309464039,-202.039798,0.00022739,7]
[358610082,1745309464051,-1227.453755,0.00022739,7]
[358610083,1745309464063,-500.0,0.00022739,2]
[358610084,1745309464073,-411.438072,0.00022739,7]
[358610085,1745309464083,-411.438072,0.00022739,7]
[358610086,1745309464093,-500.0,0.00022739,2]
[358610087,1745309464104,-1227.453755,0.00022739,7]
[358610088,1745309464115,-536.42,0.00022739,2]
[358610089,1745309464125,-411.438072,0.00022739,7]
[358610090,1745309464142,-411.438072,0.00022739,7]
[358610091,1745309464152,-198.19326537,0.00022739,2]
[358610092,1745309464162,-508.10628454,0.00022739,2]
[358610093,1745309464172,-500.0,0.00022739,2]
[358610094,1745309464183,-500.0,0.00022739,2]
[358610095,1745309464193,-500.0,0.00022739,2]
[358610096,1745309464203,-500.0,0.00022739,2]
[358610097,1745309464213,-500.0,0.00022739,2]
[358610098,1745309464223,-500.0,0.00022739,2]
[358610099,1745309464233,-437.67623609,0.00022739,2]
[358610100,1745309464243,-500.0,0.00022739,2]
[358610101,1745309464253,-500.0,0.00022739,2]
[358610102,1745309464263,-500.0,0.00022739,2]
[358610103,1745309464272,-151.0,0.00022739,7]
[358610104,1745309464282,-500.0,0.00022739,2]
[358610105,1745309464291,-151.0,0.00022739,7]
[358610106,1745309464301,-151.0,0.00022739,7]
[358610107,1745309464311,-500.0,0.00022739,2]
[358610108,1745309464320,-500.0,0.00022739,2]
[358610109,1745309464330,-500.0,0.00022739,2]
[358610110,1745309464341,-500.0,0.00022739,2]
[358610111,1745309464351,-1015.13,0.00022739,2]
[358610112,1745309464362,-500.0,0.00022739,2]
[358610113,1745309464374,-500.0,0.00022739,2]
[358610114,1745309464384,-500.0,0.00022739,2]
[358610115,1745309464394,-500.0,0.00022739,2]
[358610116,1745309464417,-500.0,0.00022739,2]
[358610117,1745309464428,-500.0,0.00022739,2]
[358610118,1745309464439,-500.0,0.00022739,2]
[358610119,1745309464449,-500.0,0.00022739,2]
[358610120,1745309464459,-500.0,0.00022739,2]
[358610121,1745309464470,-500.0,0.00022739,2]
[358610122,1745309464482,-500.0,0.00022739,2]
[358610123,1745309464493,-500.0,0.00022739,2]
[358610124,1745309464504,-500.0,0.00022739,2]
[358610125,1745309464514,-500.0,0.00022739,2]
[358610126,1745309464525,-783.97,0.00022739,2]
[358610127,1745309464535,-500.0,0.00022739,2]
[358610128,1745309464545,-681.96,0.00022739,2]
[358610129,1745309464557,-500.0,0.00022739,2]
[358610130,1745309464567,-440.68920971,0.00022739,2]
[358610131,1745309464577,-434.76113075,0.00022739,2]
[358610132,1745309464587,-500.0,0.00022739,2]
[358610133,1745309464597,-6304.72,0.00022739,2]
[358610134,1745309464607,-500.0,0.00022739,2]
[358610135,1745309464618,-500.0,0.00022739,2]
[358610136,1745309464628,-500.0,0.00022739,2]
[358610137,1745309464638,-151.0,0.00022739,7]
[358610138,1745309464647,-151.0,0.00022739,7]
[358610139,1745309464657,-600.62,0.00022739,2]
[358610140,1745309464667,-500.0,0.00022739,2]
[358610141,1745309464677,-500.0,0.00022739,2]
[358610142,1745309464687,-500.0,0.00022739,2]
[358610143,1745309464698,-151.0,0.00022739,2]
[358610144,1745309464708,-151.0,0.00022739,2]
[358610145,1745309464719,-500.0,0.00022739,2]
[358610146,1745309464729,-500.0,0.00022739,2]
[358610147,1745309464739,-751.11,0.00022739,2]
[358610148,1745309464749,-500.0,0.00022739,2]
[358610149,1745309464760,-500.0,0.00022739,2]
[358610150,1745309464769,-500.0,0.00022739,2]
[358610151,1745309464779,-528.36339163,0.00022739,2]
[358610152,1745309464789,-500.0,0.00022739,2]
[358610153,1745309464799,-500.0,0.00022739,2]
[358610154,1745309464810,-516.49821,0.00022739,7]
[358610155,1745309464820,-516.49821,0.00022739,7]
[358610156,1745309464832,-500.0,0.00022739,2]
[358610157,1745309464843,-500.0,0.00022739,2]
[358610158,1745309464853,-2228.55,0.00022739,2]
[358610159,1745309464866,-245.38881349,0.00022739,2]
[358610160,1745309464877,-516.49821,0.00022739,7]
[358610161,1745309464887,-705.42,0.00022739,2]
[358610162,1745309464897,-516.49821,0.00022739,7]
[358610163,1745309464909,-500.0,0.00022739,2]
[358610164,1745309464919,-500.0,0.00022739,2]
[358610165,1745309464928,-723.610947,0.00022739,7]
[358610166,1745309464938,-723.610947,0.00022739,7]
[358610167,1745309464948,-500.0,0.00022739,2]
[358610168,1745309464958,-723.610947,0.00022739,7]
[358610169,1745309464971,-572.47,0.00022739,2]
[358610170,1745309464981,-723.610947,0.00022739,7]
[358610171,1745309464991,-500.0,0.00022739,2]
[358610172,1745309465003,-1647.31,0.00022739,2]
[358610173,1745309465016,-500.0,0.00022739,2]
[358610174,1745309465026,-694.6,0.00022739,2]
[358610175,1745309465042,-500.0,0.00022739,2]
[358610176,1745309465053,-500.0,0.00022739,2]
[358610177,1745309465065,-1530.94,0.00022739,2]
[358610178,1745309465074,-500.0,0.00022739,2]
[358610179,1745309465084,-500.0,0.00022739,2]
[358610180,1745309465094,-500.0,0.00022739,2]
[358610181,1745309465104,-500.0,0.00022739,2]
[358610182,1745309465116,-500.0,0.00022739,2]
[358610183,1745309465126,-500.0,0.00022739,2]
[358610184,1745309465136,-500.0,0.00022739,2]
[358610185,1745309465146,-509.64213471,0.00022739,2]
[358610186,1745309465156,-500.0,0.00022739,2]
[358610187,1745309465166,-500.0,0.00022739,2]
[358610188,1745309465176,-231.38537335,0.00022739,2]
[358610189,1745309465186,-661.39,0.00022739,2]
[358610190,1745309465196,-500.0,0.00022739,2]
[358610191,1745309465206,-500.0,0.00022739,2]
[358610192,1745309465216,-500.0,0.00022739,2]
[358610193,1745309465227,-4985.83,0.00022739,2]
[358610194,1745309465237,-500.0,0.00022739,2]
[358610195,1745309465247,-1842.35,0.00022739,2]
[358610196,1745309465258,-1436.46,0.00022739,2]
[358610197,1745309465268,-500.0,0.00022739,2]
[358610198,1745309465279,-504.06754867,0.00022739,2]
[358610199,1745309465291,-500.0,0.00022739,2]
[358610200,1745309465301,-500.0,0.00022739,2]
[358610201,1745309465312,-500.0,0.00022739,2]
[358610202,1745309465323,-500.0,0.00022739,2]
[358610203,1745309465332,-967.36,0.00022739,2]
[358610204,1745309465342,-500.0,0.00022739,2]
[358610205,1745309465353,-151.0,0.00022739,7]
[358610206,1745309465364,-590.430408,0.00022739,2]
[358610207,1745309465374,-151.0,0.00022739,7]
[358610208,1745309465385,-590.430408,0.00022739,2]
[358610209,1745309465395,-151.0,0.00022739,7]
[358610210,1745309465561,-500.0,0.00022739,2]
[358610211,1745309465573,-590.430408,0.00022739,2]
[358610212,1745309465583,-590.430408,0.00022739,2]
[358610213,1745309465594,-191.99275255,0.00022739,2]
[358610214,1745309465606,-500.0,0.00022739,2]
[358610215,1745309465618,-151.0,0.00022739,7]
[358610216,1745309465629,-500.0,0.00022739,2]
[358610217,1745309465640,-151.0,0.00022739,7]
[358610218,1745309465651,-500.0,0.00022739,2]
[358610219,1745309465661,-500.0,0.00022739,2]
[358610220,1745309465672,-151.0,0.00022739,7]
[358610221,1745309465682,-254.810869,0.00022739,7]
[358610222,1745309465692,-500.0,0.00022739,2]
[358610223,1745309465703,-500.0,0.00022739,2]
[358610224,1745309465713,-500.0,0.00022739,2]
[358610225,1745309465723,-500.0,0.00022739,2]
[358610226,1745309465733,-151.0,0.00022739,7]
[358610227,1745309465743,-151.0,0.00022739,7]
[358610228,1745309465753,-780.82,0.00022739,2]
[358610229,1745309465762,-261.463872,0.00022739,7]
[358610230,1745309465772,-225.884811,0.00022812,7]
[358610231,1745309465782,-151.0,0.00022812,2]
[358610232,1745309465792,-723.610947,0.00022812,7]
[358610233,1745309465801,-723.610941,0.00022812,7]
[358610234,1745309465811,-590.430408,0.00022812,2]
[358610235,1745309465823,-590.430414,0.00022812,2]
[358610236,1745309465834,-786.265561,0.00022813,7]
[358610237,1745309465845,-786.265561,0.00022813,7]
[358610238,1745309465855,-151.0,0.00022813,7]
[358610239,1745309465867,-278.103884,0.00022813,7]
[358610240,1745309465877,-278.103884,0.00022813,7]
[358610241,1745309465887,-151.0,0.00022813,7]
[358610242,1745309465898,-151.0,0.00022813,7]
[358610243,1745309465910,-382.213737,0.00022813,7]
[358610244,1745309465921,-382.213737,0.00022813,7]
[358610245,1745309465932,-508.662506,0.00022813,7]
[358610246,1745309465945,-508.662506,0.00022813,7]
[358610247,1745309465955,-1227.453755,0.00022813,7]
[358610248,1745309465969,-1227.453755,0.00022813,7]
[358610249,1745309465979,-960.4016508,0.00022858,2]
[358610250,1745309465989,-151.0,0.00022858,7]
[358610251,1745309466000,-22005.34764557,0.00023,3]
[358610252,1745309466011,-1282.0,0.00023,2]
[358610253,1745309466021,-619.0,0.00023,2]
[358610254,1745309466031,-420.73667954,0.00023,3]
[358610255,1745309466040,-160.0,0.00023,3]
[358610256,1745309466052,-160.0,0.00023,3]
[358610257,1745309466065,-516.49821,0.00023,7]
[358610258,1745309466075,-516.49821,0.00023,7]
[358610259,1745309466087,-151.0,0.00023,7]
[358610260,1745309466097,-151.0,0.00023013,7]
[358610261,1745309466107,-151.0,0.00023013,7]
[358610262,1745309466117,-500.0,0.00023013,2]
[358610263,1745309466127,-500.0,0.00023013,2]
[358610264,1745309466137,-500.0,0.00023013,2]
[358610265,1745309466147,-500.0,0.00023013,2]
[358610266,1745309466158,-500.0,0.00023013,2]
[358610267,1745309466168,-500.0,0.00023013,2]
[358610268,1745309466178,-500.0,0.00023013,2]
[358610269,1745309466189,-491.467806,0.00023013,7]
[358610270,1745309466199,-491.467806,0.00023013,7]
[358610271,1745309466209,-647.39,0.00023013,2]
[358610272,1745309466219,-500.0,0.00023013,2]
[358610273,1745309466230,-175.043122,0.00023013,7]
[358610274,1745309466240,-175.043122,0.00023013,7]
[358610275,1745309466252,-182.00145113,0.00023013,2]
[358610276,1745309466262,-513.90113611,0.00023013,2]
[358610277,1745309466272,-500.0,0.00023013,2]
[358610278,1745309466282,-500.0,0.00023013,2]
[358610279,1745309466292,-500.0,0.00023013,2]
[358610280,1745309466304,-1511.613239,0.00023013,7]
[358610281,1745309466314,-121.99557571,0.00023013,2]
[358610282,1745309466715,-500.0,0.00021917,2]
[358610283,1745309466726,-138.38983113,0.00021917,2]
[358610284,1745309466738,-361.61016887,0.00021917,2]
[358610285,1745309466748,-500.0,0.00021917,2]
[358610286,1745309466758,-500.0,0.00022191,2]
[358610287,1745309466768,-500.0,0.00022191,2]
[358610288,1745309466778,-500.0,0.00022191,2]
[358610289,1745309466788,-500.0,0.00022191,2]
[358610290,1745309466798,-500.0,0.00022465,2]
[358610291,1745309466808,-405.72414452,0.00022465,2]
[358610292,1745309466818,-500.0,0.00022465,2]
[358610293,1745309466827,-500.0,0.00022739,2]
[358610294,1745309466837,-500.0,0.00022739,2]
[358610295,1745309466847,-378.00442429,0.00023013,2]
[358610296,1745309466858,-500.0,0.00023013,2]
[358610297,1745309466868,-500.0,0.00023013,2]
[358610298,1745309466877,-151.0,0.00023013,7]
[358610299,1745309466887,-219.395118,0.00023013,7]
[358610300,1745309466897,-219.395118,0.00023013,7]
[358610301,1745309466907,-624.35708829,0.00023013,2]
[358610302,1745309466918,-509.39720698,0.00023013,2]
[358610303,1745309466927,-500.0,0.00023013,2]
[358610304,1745309466937,-500.0,0.00023013,2]
[358610305,1745309466946,-500.0,0.00023013,2]
[358610306,1745309466956,-500.0,0.00023013,2]
[358610307,1745309466971,-500.0,0.00023013,2]
[358610308,1745309466981,-500.0,0.00023013,2]
[358610309,1745309466991,-500.0,0.00023013,2]
[358610310,1745309467000,-500.0,0.00023013,2]
[358610311,1745309467010,-151.0,0.00023013,7]
[358610312,1745309467020,-500.0,0.00023013,2]
[358610313,1745309467030,-500.0,0.00023013,2]
[358610314,1745309467039,-507.62569581,0.00023013,2]
[358610315,1745309467050,-500.0,0.00023013,2]
[358610316,1745309467061,-500.0,0.00023013,2]
[358610317,1745309467071,-786.265561,0.00023013,7]
[358610318,1745309467084,-786.265561,0.00023013,7]
[358610319,1745309467094,-500.0,0.00023013,2]
[358610320,1745309467105,-500.0,0.00023013,2]
[358610321,1745309467117,-508.3476284,0.00023013,2]
[358610322,1745309467127,-303.61906979,0.00023013,2]
[358610323,1745309467138,-500.0,0.00023013,2]
[358610324,1745309467147,-500.0,0.00023013,2]
[358610325,1745309467157,-500.0,0.00023013,2]
[358610326,1745309467167,-508.4264532,0.00023013,2]
[358610327,1745309467177,-500.0,0.00023013,2]
[358610328,1745309467187,-978.33,0.00023013,2]
[358610329,1745309467196,-151.0,0.00023013,7]
[358610330,1745309467206,-508.32,0.00023013,2]
[358610331,1745309467216,-500.0,0.00023013,2]
[358610332,1745309467227,-500.0,0.00023013,2]
[358610333,1745309467236,-268.12950632,0.00023013,2]
[358610334,1745309467246,-1022.22863644,0.00023013,2]
[358610335,1745309467256,-500.0,0.00023013,2]
[358610336,1745309467266,-500.0,0.00023013,2]
[358610337,1745309467276,-500.0,0.00023013,2]
[358610338,1745309467286,-500.0,0.00023013,2]
[358610339,1745309467296,-278.103884,0.00023013,7]
[358610340,1745309467306,-278.103884,0.00023013,7]
[358610341,1745309467316,-500.0,0.00023013,2]
[358610342,1745309467326,-500.0,0.00023013,2]
[358610343,1745309467335,-500.0,0.00023013,2]
[358610344,1745309467345,-500.0,0.00023013,2]
[358610345,1745309467355,-500.0,0.00023013,2]
[358610346,1745309467366,-500.0,0.00023013,2]
[358610347,1745309467376,-500.0,0.00023013,2]
[358610348,1745309467386,-500.0,0.00023013,2]
[358610349,1745309467396,-792.85,0.00023013,2]
[358610350,1745309467406,-500.0,0.00023013,2]
[358610351,1745309467415,-500.0,0.00023013,2]
[358610352,1745309467425,-897.73,0.00023013,2]
[358610353,1745309467435,-585.6080226,0.00023013,2]
[358610354,1745309467445,-516.5,0.00023013,2]
[358610355,1745309467455,-500.0,0.00023013,2]
[358610356,1745309467464,-500.0,0.00023013,2]
[358610357,1745309467475,-500.0,0.00023013,2]
[358610358,1745309467485,-500.0,0.00023013,2]
[358610359,1745309467495,-500.82156717,0.00023013,2]
[358610360,1745309467505,-510.86,0.00023013,2]
[358610361,1745309467515,-500.0,0.00023013,2]
[358610362,1745309467525,-876.62,0.00023013,2]
[358610363,1745309467537,-500.0,0.00023013,2]
[358610364,1745309467546,-312.368064,0.00023013,7]
[358610365,1745309467556,-312.368064,0.00023013,7]
[358610366,1745309467566,-500.0,0.00023013,2]
[358610367,1745309467576,-312.368064,0.00023013,7]
[358610368,1745309467586,-312.368064,0.00023013,7]
[358610369,1745309467713,-526.53650343,0.00023013,2]
[358610370,1745309467725,-500.0,0.00023013,2]
[358610371,1745309467735,-500.0,0.00023013,2]
[358610372,1745309467746,-823.1,0.00023013,2]
[358610373,1745309467756,-510.6598412,0.00023013,2]
[358610374,1745309467766,-500.0,0.00023013,2]
[358610375,1745309467776,-500.0,0.00023013,2]
[358610376,1745309467786,-442.77863858,0.00023013,2]
[358610377,1745309467796,-500.0,0.00023013,2]
[358610378,1745309467807,-500.0,0.00023013,2]
[358610379,1745309467817,-861.377032,0.00023013,7]
[358610380,1745309467827,-861.377032,0.00023013,7]
[358610381,1745309467837,-508.59104088,0.00023013,2]
[358610382,1745309467847,-861.377032,0.00023013,7]
[358610383,1745309467856,-155.86290271,0.00023013,2]
[358610384,1745309467867,-861.377032,0.00023013,7]
[358610385,1745309467878,-529.154868,0.00023013,7]
[358610386,1745309467888,-529.154868,0.00023013,7]
[358610387,1745309467898,-515.88,0.00023013,2]
[358610388,1745309467909,-529.154868,0.00023013,7]
[358610389,1745309467919,-529.154868,0.00023013,7]
[358610390,1745309467929,-500.0,0.00023013,2]
[358610391,1745309467939,-500.0,0.00023013,2]